Cogmind - Beta 13 @@@ ROGUE MODE // 2024.04.10 @ 22:47:01 Player: SmokeyGhosts Result: Destroyed by G-47 Trooper with Particle Gun Performance ------------- Evolutions (2) 1000 Regions Visited (4) 800 Robots Destroyed (32) 160 Value Destroyed (831) 831 Prototype IDs (2) 40 Alien Tech Used (0) 0 Bonus (0) 0 TOTAL SCORE: 2831 Bonus ------- None Cogmind --------- Core Integrity 0/550 Matter 273/300 Energy 56/100 System Corruption 0% Temperature Cool (42) Movement Core (100) Ox1 Location -8/Materials Parts ------- > --- POWER (2) -------- (None) > --- PROPULSION (3) --- (None) > --- UTILITY (2) ------ Advanced Targeting Computer > --- WEAPON (4) ------- Heavy Laser > --- INVENTORY (5) ---- High-capacity Storage Unit Weight Redist. System Structural Scanner Peak State ------------ > --- POWER ------------ Ion Engine > --- PROPULSION ------- Aluminum Leg Aluminum Leg > --- UTILITY ---------- Small Storage Unit Experimental Sensor Array > --- WEAPON ----------- Improved EM Shotgun Improved EM Shotgun Mining Laser Mining Laser > --- INVENTORY -------- Ion Engine Aluminum Leg High-capacity Storage Unit Weight Redist. System Structural Scanner Visual Processing Unit Mace [Rating: 22] Favorites ----------- Power Ion Engine Engine Ion Engine Propulsion Aluminum Leg Treads Light Treads Leg Aluminum Leg Flight Unit Flight Unit Utility Small Storage Unit Device Experimental Sensor Array Storage Small Storage Unit Processor Signal Interpreter Weapon Mining Laser Energy Gun EM Pulse Gun Ballistic Gun Light Assault Rifle Launcher Grenade Launcher Special Weapon Mining Laser Impact Weapon Mace Build | -11 -10 -9 -9 -8 ------- Run | Yrd Mat Mat Min Mat Slots Evolved 4 | . . 2 . 2 Power 1 | . . . . 1 Propulsion 1 | . . . . 1 Utility . | . . . . . Weapon 2 | . . 2 . . Parts Attached 43 | 4 11 4 10 14 Power 3 | . 2 . 1 . Engine 3 | . 2 . 1 . Core . | . . . . . Reactor . | . . . . . Propulsion 14 | 2 4 . 4 4 Treads 2 | . 2 . . . Leg 9 | 2 2 . 2 3 Wheel . | . . . . . Hover . | . . . . . Flight 3 | . . . 2 1 Utility 8 | . 4 . 2 2 Device 1 | . . . 1 . Storage 3 | . 3 . . . Processor 4 | . 1 . 1 2 Hackware . | . . . . . Protection . | . . . . . Artifact . | . . . . . Weapon 18 | 2 1 4 3 8 Energy Gun 6 | 2 . 2 . 2 Energy Cannon . | . . . . . Ballistic Gun 8 | . . . 2 6 Ballistic Cannon . | . . . . . Launcher 1 | . 1 . . . Special Weapon 2 | . . 2 . . Impact Weapon 1 | . . . 1 . Slashing Weapon . | . . . . . Piercing Weapon . | . . . . . Special Melee Weapon . | . . . . . Unidentified Prototypes 2 | . . 1 1 . Parts Lost 27 | . 2 . 10 15 Power 3 | . 1 . 2 . Propulsion 10 | . . . 4 6 Utility 1 | . . . . 1 Weapon 13 | . 1 . 4 8 Highest Loss Streak 9 | . 2 . 6 9 To Critical Strikes . | . . . . . Average Slot Usage (%) 72 | . 71 99 73 53 Engine 5 | . 3 11 8 . Leg 17 | . 24 22 17 6 Flight 2 | . . . 1 9 Device 2 | . . . 5 . Storage 10 | . 11 11 11 8 Processor 5 | . 2 11 5 9 Energy Gun 10 | . 18 12 9 2 Ballistic Gun 4 | . . . 2 18 Launcher 3 | . 8 8 . . Special Weapon 6 | . . 22 7 . Impact Weapon 2 | . . . 5 . Naked Turns . | . . . . . Heaviest Build 19 | 4 15 18 19 17 Greatest Support 40 | 20 40 20 20 30 Greatest Overweight (x) 3 | . . . 2 3 Average Overweight (x) . | . . . . . Largest Inventory Capacity 20 | 5 20 8 8 8 Average Capacity 7 | 5 7 8 8 7 Most Carried 8 | 5 6 8 8 8 Average Carried 5 | 4 4 5 5 4 Final Capacity 8 | 5 8 8 8 5 Final Carried 8 | 5 5 8 4 3 Class Distribution -------------------- 49% | Mutant 25% | Gunner 13% | Skirmisher 12% | Scavenger-Gunner Dominant Class ---------------- Mutant | -10/Materials Gunner | -9/Materials Mutant | -9/Mines Gunner | -8/Materials Resources | -11 -10 -9 -9 -8 ----------- Run | Yrd Mat Mat Min Mat Matter Collected 669 | 99 . 22 342 206 Remotely . | . . . . . Salvage Created 928 | . 161 22 475 270 Parts 55 | . 10 5 25 15 Haulers Intercepted . | . . . . . Recyclers Shooed . | . . . . . Parts Field Recycled . | . . . . . Retrieved Matter . | . . . . . Parts Self-Destructed . | . . . . . Prevented . | . . . . . Kills | -11 -10 -9 -9 -8 ------- Run | Yrd Mat Mat Min Mat Combat Hostiles Destroyed 24 | . 4 . 15 5 Melee 1 | . . . 1 . Guns 15 | . . . 10 5 AOE 8 | . 4 . 4 . Classes Destroyed 8 | . 4 . 1 3 Worker 1 | . . . . 1 Tunneler 1 | . . . 1 . Recycler 2 | . 1 . 1 . Operator 1 | . . . . 1 Watcher 3 | . 2 1 . . Swarmer 11 | . 2 . 9 . Grunt 12 | . 2 . 6 4 Sentry 1 | . . . . 1 Best Kill Streak 4 | . 4 1 4 2 Combat Bots Only 3 | . 2 . 3 2 Max Kills in Single Turn 4 | . 4 1 2 1 Gunslinging . | . . . . . Exploded 2 | . 2 . 2 . Melee 1 | . . . 1 . Uniques/NPCs Destroyed . | . . . . . Combat | -11 -10 -9 -9 -8 -------- Run | Yrd Mat Mat Min Mat Hostile Shots Fired 277 | . 20 . 99 158 Missed 76 | . 5 . 29 42 Damage Taken 3148 | . 319 . 983 1846 Core 785 | . 10 . 217 558 Absorbed by Shields . | . . . . . Core Remaining (%) 80 | 100 96 . 45 . Volleys Fired 67 | . 8 2 23 34 Largest 3 | . 2 1 2 3 Hottest 145 | . 80 40 145 69 Shots Fired 125 | . 16 2 43 64 Gun 121 | . 13 2 42 64 Cannon . | . . . . . Launcher 3 | . 3 . . . Special 1 | . . . 1 . Kinetic 71 | . . . 10 61 Thermal 4 | . . . 1 3 Explosive 3 | . 3 . . . Electromagnetic 47 | . 13 2 32 . Robot Hit Streak 9 | . 4 1 8 9 Robot Miss Streak 3 | . 1 2 3 2 Penetration Max . | . . . . . Secondary Targets 5 | . . . 4 1 Max Gunslinging Chain 1 | . . . 1 1 Shots Hit Robots 87 | . 8 1 36 42 Core Hits 53 | . 8 1 22 22 Critical Kills . | . . . . . Critical Parts Destroyed . | . . . . . Critical Strikes . | . . . . . Melee Attacks 8 | . . . 8 . Impact 8 | . . . 8 . Slashing . | . . . . . Piercing . | . . . . . Sneak Attacks 1 | . . . 1 . Combat Hostiles . | . . . . . Follow-up Attacks . | . . . . . Damage Inflicted 2305 | . 764 22 963 556 Guns 1122 | . 78 22 466 556 Cannons . | . . . . . Explosions 972 | . 686 . 286 . Melee 203 | . . . 203 . Ramming 8 | . . . 8 . Kinetic 568 | . . . 50 518 Thermal 852 | . 528 . 286 38 Explosive 158 | . 158 . . . Electromagnetic 516 | . 78 22 416 . Impact 203 | . . . 203 . Slashing . | . . . . . Piercing . | . . . . . Highest Corruption . | . . . . . Average Corruption . | . . . . . Corruption Purged . | . . . . . Corruption Blocked . | . . . . . Overload Shots . | . . . . . Overflow Damage 224 | . 187 . 37 . Projectiles . | . . . . . Explosions 187 | . 187 . . . Melee 37 | . . . 37 . Knockbacks . | . . . . . Impact . | . . . . . Kinetic . | . . . . . Secondary . | . . . . . Self-Inflicted Damage 264 | . 173 . 91 . Shots 4 | . 2 . 2 . Rammed . | . . . . . Targets Rammed 3 | . . . 3 . Kicked 3 | . . . 3 . Crushed . | . . . . . Highest Temperature 99 | . 99 . 96 61 Average Temperature 32 | . 40 . 38 20 Received Heat Transfer 1146 | . 18 . 39 1089 Siege Activations . | . . . . . Robots Corrupted . | . . . . . Combat Hostiles . | . . . . . Parts Fried 3 | . 1 . 2 . Impact Corruptions 2 | . . . 2 . Robots Melted . | . . . . . Combat Hostiles . | . . . . . Parts Melted . | . . . . . Heat Transferred 824 | . 350 . 400 74 Parts Sabotaged . | . . . . . Parts Stolen . | . . . . . Parts Stripped . | . . . . . Power Chain Reactions 7 | . 2 . 5 . Alert | -11 -10 -9 -9 -8 ------- Run | Yrd Mat Mat Min Mat Peak Influence 340 | . 289 143 340 143 Initial 121 | . . 121 55 48 Average 163 | . 175 127 211 98 Maximum Alert Level 1 | . 1 . 1 . Low Security (%) 59 | 100 30 100 40 100 Level 1 40 | . 69 . 59 . Level 2 . | . . . . . Level 3 . | . . . . . Level 4 . | . . . . . Level 5 . | . . . . . High Security . | . . . . . Max Security . | . . . . . Squads Dispatched 2 | . . . . 2 Investigation 1 | . . . . 1 Extermination . | . . . . . Reinforcement . | . . . . . Assault . | . . . . . Garrison 1 | . . . . 1 Intercept . | . . . . . Searches Triggered . | . . . . . Construction Impeded . | . . . . . Haulers Reinforced . | . . . . . Active Scanning Responses . | . . . . . Cargo Convoy Interrupts . | . . . . . Stealth | -11 -10 -9 -9 -8 --------- Run | Yrd Mat Mat Min Mat Distress Signals 2 | . 2 . . . Communications Jammed . | . . . . . Distress Signals . | . . . . . Times Spotted 35 | . 7 1 16 11 Peak Tracking Total 4 | . 4 1 4 4 Tactical Retreats . | . . . . . Traps | -11 -10 -9 -9 -8 ------- Run | Yrd Mat Mat Min Mat Traps Triggered . | . . . . . Indirectly . | . . . . . Trap Hack Attempts . | . . . . . Triggered . | . . . . . Disarmed . | . . . . . Reprogrammed . | . . . . . Reused . | . . . . . Traps Extracted . | . . . . . Installed . | . . . . . Triggered . | . . . . . Machines | -11 -10 -9 -9 -8 ---------- Run | Yrd Mat Mat Min Mat Machines Disabled 9 | . 9 . . . Max in Single Turn 9 | . 9 . . . Machines Repaired . | . . . . . Machines Dismantled . | . . . . . Machines Sabotaged . | . . . . . Overloaded Fab Kills . | . . . . . Hacking | -11 -10 -9 -9 -8 --------- Run | Yrd Mat Mat Min Mat Machines Accessed 3 | . . 1 1 1 Terminals 3 | . . 1 1 1 Fabricators . | . . . . . Repair Stations . | . . . . . Recycling Units . | . . . . . Scanalyzers . | . . . . . Garrison Access . | . . . . . Total Hacks 9 | . . 3 1 5 Successful 4 | . . 1 1 2 Failed 5 | . . 2 . 3 Catastrophic 1 | . . . . 1 Database Lockouts . | . . . . . Manual . | . . . . . Terminals 9 | . . 3 1 5 Fabricators . | . . . . . Repair Stations . | . . . . . Recycling Units . | . . . . . Scanalyzers . | . . . . . Garrison Access . | . . . . . Terminal Hacks 4 | . . 1 1 2 Record 2 | . . . . 2 Emergency Access Points 1 | . . 1 . . Zone Layout 1 | . . . 1 . Fabricator Hacks . | . . . . . Repair Station Hacks . | . . . . . Recycling Unit Hacks . | . . . . . Scanalyzer . | . . . . . Garrison Access Hacks . | . . . . . Unauthorized Hacks . | . . . . . Terminals . | . . . . . Fabricators . | . . . . . Repair Stations . | . . . . . Recycling Units . | . . . . . Scanalyzers . | . . . . . Garrison Access . | . . . . . Data Cores Recovered 1 | . . . . 1 Used . | . . . . . Hacking Detections 2 | . . 1 . 1 Full Trace Events 2 | . . 1 . 1 Feedback Events . | . . . . . Feedback Blocked . | . . . . . Robot Schematics Acquired . | . . . . . Robots Built . | . . . . . Authchips . | . . . . . Time . | . . . . . Total Robot Build Rating . | . . . . . Part Schematics Acquired . | . . . . . Parts Built . | . . . . . Authchips . | . . . . . Time . | . . . . . Total Part Build Rating . | . . . . . Parts Repaired . | . . . . . Time . | . . . . . Parts Recycled . | . . . . . Recycled Matter . | . . . . . Retrieved Matter . | . . . . . Retrieved Components . | . . . . . Parts Scanalyzed . | . . . . . Part Schematics Acquired . | . . . . . Parts Damaged . | . . . . . Bothacking | -11 -10 -9 -9 -8 ------------ Run | Yrd Mat Mat Min Mat Used RIF Installer . | . . . . . Robots Hacked . | . . . . . Non-combat . | . . . . . Combat . | . . . . . Robot Hacks Applied . | . . . . . Relay Couplers Released . | . . . . . Fabnet Peak Effective % . | . . . . . Robots Rewired . | . . . . . Allies Hacked . | . . . . . Hacks Repelled . | . . . . . Allies | -11 -10 -9 -9 -8 -------- Run | Yrd Mat Mat Min Mat Total Allies . | . . . . . Largest Group . | . . . . . Highest-Rated Group . | . . . . . Highest-Rated Ally . | . . . . . Total Orders . | . . . . . Ally Attacks . | . . . . . Total Damage . | . . . . . Kills . | . . . . . Allies Corrupted . | . . . . . Allies Melted . | . . . . . Intel | -11 -10 -9 -9 -8 ------- Run | Yrd Mat Mat Min Mat Robot Analysis Total . | . . . . . Derelict Logs Recovered 1 | . . . 1 . Drone Launches . | . . . . . Drone Recoveries . | . . . . . Exploration | -11 -10 -9 -9 -8 ------------- Run | Yrd Mat Mat Min Mat Turns Passed 1215 | 46 273 166 514 216 Spaces Moved 829 | 41 186 118 362 122 Core 45 | 19 . . 9 17 Treads 11 | . 11 . . . Legs 622 | 22 175 118 305 2 Wheels . | . . . . . Hover . | . . . . . Flight 151 | . . . 48 103 Fastest Speed 34 | 50 120 120 37 34 Average Speed 104 | 87 122 120 110 48 Slowest Speed 200 | 120 160 120 190 200 Overloaded Moves . | . . . . . Propulsion Burnouts . | . . . . . Robots Hopped . | . . . . . Cave-ins Triggered . | . . . . . Exploration Rate (%) 28 | 3 55 20 55 10 Regions Visited 4 Branch Regions 1 Pre-discovered Areas 1 | . . . 1 . Known Exits Taken 2 | . 1 1 . . Unknown Exits Taken 2 | 1 . . 1 . Scrap Searched . | . . . . . Spaces Dug . | . . . . . Terrain Destroyed 85 | . 65 . 20 . Melee . | . . . . . Projectile 1 | . . . 1 . AOE 84 | . 65 . 19 . Terrain Rammed . | . . . . . Walls Destroyed . | . . . . . Machines Disabled . | . . . . . Actions | -11 -10 -9 -9 -8 --------- Run | Yrd Mat Mat Min Mat Total 1065 | 49 216 140 421 239 Wait 66 | . . 10 2 54 Move 825 | 40 185 117 361 122 Hop . | . . . . . Pick Up 37 | 5 7 5 9 11 Fast Attach 8 | 4 . 2 . 2 Attach 31 | . 8 2 9 12 Detach 4 | . 3 . . 1 Swap 4 | . 3 . 1 . Drop 12 | . 2 2 5 3 Fire 67 | . 8 2 23 34 Melee 8 | . . . 8 . Ram . | . . . . . Kick 3 | . . . 3 . Crush . | . . . . . Escape Stasis . | . . . . . Rewire . | . . . . . Trap . | . . . . . Miscellaneous . | . . . . . Route ------- -11/Scrapyard -10/Materials (discovered 2 exits: *Mat / [*Min]) -9/Materials -9/Mines -8/Materials History --------- Turn | Location | Event 3 | -11/Scrapyard | Discovered new exit (range 15) 47 | -11/Scrapyard | Entered Materials 151 | -10/Materials | Discovered new exit (range 15) 302 | -10/Materials | Discovered new exit (range 16) 306 | -10/Materials | Build established: Mutant 319 | -10/Materials | Identified exit to Materials 320 | -10/Materials | Entered another Materials area 320 | -9/Materials | Evolved 2 slots: Weapon x2 437 | -9/Materials | Discovered new exit (range 12) 485 | -9/Materials | Identified exit to Mines 486 | -9/Materials | Entered Mines 533 | -9/Mines | Found a damaged Exp. Sensor Array with a note attached 536 | -9/Mines | Found Prototype Device 537 | -9/Mines | Identified Exp. Sensor Array 670 | -9/Mines | Assembled infested the area 675 | -9/Mines | Assisted by a Guerilla fighting off Assembled 676 | -9/Mines | Learned location of Zion (-7) 724 | -9/Mines | Discovered new exit (range 9) 763 | -9/Mines | Lost 6 parts (1p2n3w) 954 | -9/Mines | Core integrity fell below 50% 979 | -9/Mines | Lost 3 parts (1p2n) 1000 | -9/Mines | Entered Materials 1000 | -8/Materials | Evolved 2 slots: Power x1, Propulsion x1 1142 | -8/Materials | Lost 6 parts (3n3w) 1178 | -8/Materials | Core integrity fell below 50% 1191 | -8/Materials | Core integrity fell below 20% 1215 | -8/Materials | Garrison activated, responded to threat 1216 | -8/Materials | Destroyed by G-47 Trooper with Particle Gun Last Messages --------------- Acquired Autogun. K-01 Serf collects debris. U-05 Engineer builds a Door. G-50 Soldier destroyed. K-01 Serf collects debris. Sml. Storage Unit destroyed. K-01 Serf collects debris. U-05 Engineer builds a Door. K-01 Serf collects debris. K-01 Serf destroyed. Autogun destroyed. K-01 Serf collects debris. Acquired 61 matter. Acquired Hvy. Laser. K-01 Serf collects debris. G-47 Trooper calls for garrison reinforcements. ALERT: Activating Garrison Access M001. [Achievement: Troublemaker] B-36 Bruiser emerges from the garrison. L-31 Rogue emerges from the garrison. Map ----- +----------------------------------------------------+ | | | | | | | ?????????????????????????????????????????????????? | | ?????????????????????????????????????????????????? | | ?????????????????????????????????????????????????? | | ?????????????????????????????????????????????????? | | ?????????????????????????????????????????????????? | | ?????????????????????????????????????????????????? | | ?????????????????????????????????????????????????? | | ???????????##+##########?????????????????????????? | | ???????????# + ????????????????????????? | | ?????####### # ???????????####?????????? | | ?????? k # ?????????? ??????????? | | ???????????# # ???????? ???????????? | | ???????????# #? ???????? #????????????? | | ???????????# #? ??????? uk#????????????? | | ???????????# ###+####### #????????????? | | ???????????# u #????????????? | | ??????????## #????????????? | | ?????????#"" g ! #????????????? | | ?????????#"T """" ! #????????????? | | ?????????#"" """" k#????????????? | | ?????????### """" """ # ! ???????? | | ??????????## u = l G" + ?????????? | | ??????? ! @ b""" # """????????? | | ??????? *%| * #??"?????????? | | ??????? ! = #????????????? | | ???????? ################# g ########????????????? | | ???????????# # a ###########?????????? | | ???????????# # # #?????????? | | ???????????# """ """ """ + + T #?????????? | | ???????????# """ """ """ # # #?????????? | | ???????????# """ """ """ # # #?????????? | | ???????????# #% # """ """ #?????????? | | ???????????###############* # """ """ #?????????? | | ?????????????????????????# # """ """ #?????????? | | ?????????????????????????# # #?????????? | | ?????????????????????????#^^^###########?????????? | | ?????????????????????????# #???????????????????? | | ?????????????????????????# #???????????????????? | | ?????????????????????????# #???????????????????? | | ????????????????????????? ???????????????????? | | ????????????????????????? ???????????????????? | | ???????????????????????? % #??????????????????? | | ????????????????????????# * #??????????????????? | | ????????????????????????# #??????????????????? | | ????????????????????????###+###??????????????????? | | ?????????????????????????????????????????????????? | | ?????????????????????????????????????????????????? | +----------------------------------------------------+ Best States ------------- Heat Dissipation 31 Energy Generation 10 Energy Capacity 250 Matter Stores 300 Matter Capacity 300 Sight Range 18 Robot Scan Range 20 Terrain Scan Density 10 Evasion (%) 63 Targeting Accuracy 8 Recoil Reduction 2 Item Schematics ----------------- None Robot Schematics ------------------ None Fabricated ------------ Nothing Alien Tech Used ----------------- None Achievements -------------- One Hack Too Far Oops Troublemaker Challenges ------------ None Game ------ Seed SubatomicCoolingFacilitator Manual? 0 Play Time 00:23:27 Cumulative 0.9 hours Start 2024.04.10 @ 22:26:16 End 2024.04.10 @ 22:47:01 Sessions 1 Manual Loads 0 Difficulty Rogue Special Mode None Game No. 3 Rogue 3 Adventurer 0 Explorer 0 Win Type - Total 0 Types 0/0/0/0/0/0/0/0/0 Lore% 0 Gallery% 3 Achievement% 4 Wizard Run 0 Options --------- Layout 1 ASCII 0 Keyboard 0 Movement Mouse Keybinds 0 Fullscreen 1 Font 24/Smallcaps Map View 50x35 Zoom Use 0% Tactical HUD 0 Map Filters NONE Filters NONE Steam 1 RUN: f70f8ced-9e5a-4b3f-9ad8-9bbb2df230ad